fUSD/lending_fUSD_20251212
["ID","MTS","AMOUNT","RATE_DAILY","PERIOD"]
[398375178,1765559373451,-505.69,0.00039452,30]
[398375179,1765559373525,-500.0,0.00039452,30]
[398375181,1765559373596,-500.0,0.00039452,30]
[398375183,1765559373666,-500.0,0.00039452,30]
[398375185,1765559373735,-500.0,0.00039452,30]
[398375187,1765559373808,-500.0,0.00039452,30]
[398375190,1765559373887,-500.0,0.00039452,30]
[398375192,1765559373957,-531.4739013,0.00039452,30]
[398375194,1765559374032,-500.0,0.00039452,30]
[398375197,1765559374104,-500.0,0.00039452,30]
[398375199,1765559374176,-500.0,0.00039452,30]
[398375201,1765559374242,-500.0,0.00039452,30]
[398375203,1765559374318,-500.0,0.00039452,30]
[398375206,1765559374390,-500.0,0.00039452,30]
[398375208,1765559374454,-500.0,0.00039452,30]
[398375210,1765559374520,-1153.52,0.00039452,30]
[398375212,1765559374588,-500.0,0.00039452,30]
[398375215,1765559374654,-500.0,0.00039452,30]
[398375217,1765559374718,-854.82,0.00039452,30]
[398375219,1765559374784,-666.07,0.00039452,30]
[398375221,1765559374849,-500.0,0.00039452,30]
[398375224,1765559374915,-500.0,0.00039452,30]
[398375226,1765559374980,-500.0,0.00039452,30]
[398375228,1765559375047,-502.66,0.00039452,30]
[398375230,1765559375117,-500.0,0.00039452,30]
[398375233,1765559375184,-500.0,0.00039452,30]
[398375235,1765559375250,-1981.87413775,0.00039452,30]
[398375237,1765559375315,-500.0,0.00039452,30]
[398375239,1765559375395,-500.0,0.00039452,30]
[398375242,1765559375465,-500.0,0.00039452,30]
[398375244,1765559375530,-500.0,0.00039452,30]
[398375246,1765559375598,-500.0,0.00039452,30]
[398375249,1765559375669,-500.0,0.00039452,30]
[398375251,1765559375731,-500.0,0.00039452,30]
[398375253,1765559375799,-500.0,0.00039452,30]
[398375255,1765559375867,-500.0,0.00039452,30]
[398375258,1765559375939,-500.0,0.00039452,30]
[398375260,1765559376004,-944.86,0.00039452,30]
[398375262,1765559376069,-599.5,0.00039452,30]
[398375264,1765559376139,-545.28588433,0.00039452,30]
[398375266,1765559376210,-500.0,0.00039452,30]
[398375269,1765559376278,-500.0,0.00039452,30]
[398375271,1765559376342,-500.0,0.00039452,30]
[398375273,1765559376409,-500.0,0.00039452,30]
[398375275,1765559376475,-500.0,0.00039452,30]
[398375278,1765559376538,-500.0,0.00039452,30]
[398375280,1765559376600,-651.78,0.00039452,30]
[398375282,1765559376664,-500.0,0.00039452,30]
[398375284,1765559376732,-500.0,0.00039452,30]
[398375287,1765559376796,-500.0,0.00039452,30]
[398375289,1765559376866,-500.0,0.00039452,30]
[398375292,1765559376940,-500.0,0.00039452,30]
[398375294,1765559377005,-500.0,0.00039452,30]
[398375296,1765559377082,-767.46,0.00039452,30]
[398375299,1765559377150,-500.0,0.00039452,30]
[398375306,1765559377506,-500.0,0.00039452,30]
[398375308,1765559377572,-500.0,0.00039452,30]
[398375311,1765559377638,-500.0,0.00039452,30]
[398375313,1765559377700,-500.0,0.00039452,30]
[398375315,1765559377761,-500.0,0.00039452,30]
[398375317,1765559377825,-500.0,0.00039452,30]
[398375320,1765559377888,-500.0,0.00039452,30]
[398375322,1765559377953,-500.0,0.00039452,30]
[398375324,1765559378018,-500.0,0.00039452,30]
[398375326,1765559378085,-500.0,0.00039452,30]
[398375329,1765559378154,-500.0,0.00039452,30]
[398375331,1765559378217,-500.0,0.00039452,30]
[398375333,1765559378283,-500.0,0.00039452,30]
[398375335,1765559378354,-320.48740997,0.00039452,30]
[398375338,1765559378420,-500.0,0.00039452,30]
[398375340,1765559378484,-500.0,0.00039452,30]
[398375342,1765559378549,-640.34617966,0.00039452,30]
[398375344,1765559378617,-500.0,0.00039452,30]
[398375346,1765559378686,-500.0,0.00039452,30]
[398375347,1765559378755,-204.25644475,0.00039452,30]
[398375349,1765559378822,-500.0,0.00039452,30]
[398375351,1765559378891,-500.0,0.00039452,30]
[398375353,1765559378957,-500.0,0.00039452,30]
[398375355,1765559379024,-192.50116357,0.00039452,30]
[398375357,1765559379091,-500.0,0.00039452,30]
[398375359,1765559379161,-500.0,0.00039452,30]
[398375361,1765559379230,-500.0,0.00039452,30]
[398375364,1765559379298,-871.13,0.00039452,30]
[398375366,1765559379364,-500.0,0.00039452,30]
[398375368,1765559379427,-500.0,0.00039452,30]
[398375370,1765559379492,-500.0,0.00039452,30]
[398375372,1765559379556,-500.0,0.00039452,30]
[398375374,1765559379620,-500.0,0.00039452,30]
[398375376,1765559379686,-500.0,0.00039452,30]
[398375379,1765559379751,-660.76,0.00039452,30]
[398375381,1765559379813,-1294.87,0.00039452,30]
[398375383,1765559379883,-500.0,0.00039452,30]
[398375385,1765559379957,-500.0,0.00039452,30]
[398375388,1765559380029,-1208.8,0.00039452,30]
[398375390,1765559380100,-689.89,0.00039452,30]
[398375392,1765559380171,-500.0,0.00039452,30]
[398375394,1765559380247,-371.45484978,0.00039452,30]
[398375397,1765559380316,-500.0,0.00039452,30]
[398375399,1765559380387,-500.0,0.00039452,30]
[398375401,1765559380457,-500.0,0.00039452,30]
[398375403,1765559380529,-500.0,0.00039452,30]
[398375406,1765559380598,-737.43,0.00039452,30]
[398375408,1765559380669,-500.0,0.00039452,30]
[398375410,1765559380735,-515.1,0.00039452,30]
[398375412,1765559380803,-562.24,0.00039452,30]
[398375415,1765559380868,-500.0,0.00039452,30]
[398375417,1765559380943,-500.0,0.00039452,30]
[398375419,1765559381012,-500.0,0.00039452,30]
[398375422,1765559381083,-619.32,0.00039452,30]
[398375424,1765559381148,-500.0,0.00039452,30]
[398375426,1765559381212,-500.0,0.00039452,30]
[398375428,1765559381276,-500.0,0.00039452,30]
[398375430,1765559381340,-500.0,0.00039452,30]
[398375432,1765559381408,-1340.71,0.00039452,30]
[398375435,1765559381473,-500.0,0.00039452,30]
[398375437,1765559381535,-500.0,0.00039452,30]
[398375439,1765559381596,-500.0,0.00039452,30]
[398375441,1765559381660,-500.0,0.00039452,30]
[398375443,1765559381721,-592.55,0.00039452,30]
[398375445,1765559381781,-500.0,0.00039452,30]
[398375448,1765559381843,-790.25,0.00039452,30]
[398375450,1765559381903,-772.71,0.00039452,30]
[398375452,1765559381967,-500.0,0.00039452,30]
[398375455,1765559382033,-889.83,0.00039452,30]
[398375457,1765559382094,-656.2,0.00039452,30]
[398375459,1765559382157,-500.0,0.00039452,30]
[398375461,1765559382221,-500.0,0.00039452,30]
[398375464,1765559382282,-592.15,0.00039452,30]
[398375466,1765559382342,-159.99832442,0.00039452,30]
[398375468,1765559382404,-500.0,0.00039452,30]
[398375471,1765559382470,-500.0,0.00039452,30]
[398375473,1765559382532,-500.0,0.00039452,30]
[398375475,1765559382593,-500.0,0.00039452,30]
[398375477,1765559382657,-500.0,0.00039452,30]
[398375479,1765559382721,-500.0,0.00039452,30]
[398375482,1765559382784,-500.0,0.00039452,30]
[398375484,1765559382842,-500.0,0.00039452,30]
[398375486,1765559382901,-500.0,0.00039452,30]
[398375488,1765559382966,-526.55,0.00039452,30]
[398375491,1765559383032,-500.0,0.00039452,30]
[398375493,1765559383094,-500.0,0.00039452,30]
[398375495,1765559383159,-500.0,0.00039452,30]
[398375497,1765559383230,-500.0,0.00039452,30]
[398375500,1765559383297,-1443.54,0.00039452,30]
[398375502,1765559383359,-500.0,0.00039452,30]
[398375504,1765559383425,-500.0,0.00039452,30]
[398375506,1765559383492,-503.16,0.00039452,30]
[398375509,1765559383558,-512.46,0.00039452,30]
[398375511,1765559383620,-500.0,0.00039452,30]
[398375513,1765559383680,-896.59,0.00039452,30]
[398375518,1765559383933,-500.34,0.00039452,30]
[398375519,1765559384002,-1256.23,0.00039452,30]
[398375521,1765559384070,-817.71,0.00039452,30]
[398375523,1765559384136,-756.26,0.00039452,30]
[398375525,1765559384201,-500.0,0.00039452,30]
[398375527,1765559384267,-500.0,0.00039452,30]
[398375529,1765559384334,-500.0,0.00039452,30]
[398375532,1765559384404,-597.9,0.00039452,30]
[398375534,1765559384472,-500.0,0.00039452,30]
[398375536,1765559384537,-625.93,0.00039452,30]
[398375538,1765559384605,-500.0,0.00039452,30]
[398375540,1765559384671,-500.0,0.00039452,30]
[398375543,1765559384734,-406.46454698,0.00039452,30]
[398375545,1765559384795,-500.0,0.00039452,30]
[398375547,1765559384859,-500.0,0.00039452,30]
[398375549,1765559384926,-673.07,0.00039452,30]
[398375552,1765559385009,-500.0,0.00039452,30]
[398375554,1765559385077,-748.24,0.00039452,30]
[398375557,1765559385155,-500.0,0.00039452,30]
[398375559,1765559385232,-1096.61,0.00039452,30]
[398375561,1765559385302,-500.0,0.00039452,30]
[398375563,1765559385371,-500.0,0.00039452,30]
[398375565,1765559385441,-500.0,0.00039452,30]
[398375568,1765559385511,-500.0,0.00039452,30]
[398375570,1765559385584,-500.0,0.00039452,30]
[398375572,1765559385654,-500.0,0.00039452,30]
[398375575,1765559385730,-500.0,0.00039452,30]
[398375577,1765559385790,-500.0,0.00039452,30]
[398375579,1765559385850,-368.59396351,0.00039452,30]
[398375582,1765559385911,-831.5,0.00039452,30]
[398375584,1765559385974,-500.0,0.00039452,30]
[398375586,1765559386047,-500.0,0.00039452,30]
[398375589,1765559386115,-711.65,0.00039452,30]
[398375591,1765559386178,-500.0,0.00039452,30]
[398375593,1765559386240,-500.0,0.00039452,30]
[398375595,1765559386301,-500.0,0.00039452,30]
[398375598,1765559386382,-522.02331353,0.00039452,30]
[398375600,1765559386444,-500.0,0.00039452,30]
[398375602,1765559386505,-613.25,0.00039452,30]
[398375604,1765559386566,-500.0,0.00039452,30]
[398375607,1765559386629,-500.0,0.00039452,30]
[398375609,1765559386688,-500.0,0.00039452,120]
[398375611,1765559386750,-500.0,0.00039452,30]
[398375613,1765559386812,-500.0,0.00039452,30]
[398375616,1765559386875,-702.41,0.00039452,30]
[398375618,1765559386937,-500.0,0.00039452,30]
[398375620,1765559386999,-500.0,0.00039452,30]
[398375623,1765559387061,-500.0,0.00039452,30]
[398375625,1765559387125,-500.0,0.00039452,30]
[398375627,1765559387190,-500.0,0.00039452,30]
[398375629,1765559387254,-500.0,0.00039452,30]
[398375632,1765559387315,-500.0,0.00039452,30]
[398375634,1765559387378,-500.0,0.00039452,30]
[398375636,1765559387449,-500.0,0.00039452,30]
[398375639,1765559387513,-500.0,0.00039452,30]
[398375641,1765559387577,-751.53,0.00039452,30]
[398375643,1765559387658,-500.0,0.00039452,30]
[398375646,1765559387724,-500.0,0.00039452,30]
[398375648,1765559387790,-500.0,0.00039452,30]
[398375650,1765559387851,-500.0,0.00039452,30]
[398375652,1765559387922,-500.0,0.00039452,30]
[398375655,1765559387987,-500.0,0.00039452,30]
[398375657,1765559388050,-500.0,0.00039452,30]
[398375659,1765559388121,-500.0,0.00039452,30]
[398375661,1765559388189,-500.0,0.00039452,30]
[398375664,1765559388258,-500.0,0.00039452,30]
[398375666,1765559388332,-500.0,0.00039452,30]
[398375668,1765559388400,-500.0,0.00039452,30]
[398375671,1765559388466,-500.0,0.00039452,30]
[398375673,1765559388528,-500.0,0.00039452,30]
[398375675,1765559388591,-500.0,0.00039452,30]
[398375677,1765559388658,-500.0,0.00039452,30]
[398375680,1765559388723,-500.0,0.00039452,30]
[398375682,1765559388786,-500.0,0.00039452,30]
[398375684,1765559388850,-856.21,0.00039452,30]
[398375687,1765559388915,-500.0,0.00039452,30]
[398375689,1765559388986,-500.0,0.00039452,30]
[398375690,1765559389056,-1298.66,0.00039452,30]
[398375691,1765559389122,-500.0,0.00039452,30]
[398375693,1765559389191,-625.34,0.00039452,30]
[398375695,1765559389257,-605.46,0.00039452,30]
[398375697,1765559389321,-500.0,0.00039452,30]
[398375700,1765559389385,-500.0,0.00039452,30]
[398375702,1765559389446,-2537.52,0.00039452,30]
[398375704,1765559389507,-545.21,0.00039452,30]
[398375706,1765559389568,-612.3,0.00039452,30]
[398375709,1765559389639,-500.0,0.00039452,30]
[398375711,1765559389697,-500.0,0.00039452,30]
[398375713,1765559389756,-500.0,0.00039452,30]
[398375715,1765559389818,-500.0,0.00039452,30]
[398375718,1765559389882,-758.93,0.00039452,30]
[398375720,1765559389942,-500.0,0.00039452,30]
[398375722,1765559390002,-500.0,0.00039452,30]
[398375724,1765559390065,-580.78,0.00039452,30]
[398375727,1765559390129,-500.0,0.00039452,30]
[398375735,1765559390515,-500.0,0.00039452,30]
[398375738,1765559390584,-500.0,0.00039452,30]
[398375740,1765559390646,-500.0,0.00039452,30]
[398375742,1765559390704,-500.0,0.00039452,30]
[398375744,1765559390763,-568.8,0.00039452,30]
[398375746,1765559390822,-500.0,0.00039452,30]
[398375749,1765559390891,-681.75,0.00039452,30]
[398375751,1765559390959,-904.15,0.00039452,30]
[398375754,1765559391022,-521.98,0.00039452,30]
[398375756,1765559391082,-500.0,0.00039452,30]
[398375758,1765559391157,-500.0,0.00039452,30]
[398375761,1765559391224,-500.0,0.00039452,30]
[398375763,1765559391286,-1178.64,0.00039452,30]
[398375765,1765559391350,-500.0,0.00039452,30]
[398375768,1765559391440,-500.0,0.00039452,30]
[398375770,1765559391517,-500.0,0.00039452,30]
[398375772,1765559391582,-987.42,0.00039452,30]
[398375775,1765559391650,-500.0,0.00039452,30]
[398375777,1765559391711,-688.42,0.00039452,30]
[398375779,1765559391772,-500.0,0.00039452,30]
[398375781,1765559391834,-591.37,0.00039452,30]
[398375784,1765559391897,-500.0,0.00039452,30]
[398375786,1765559391957,-500.0,0.00039452,30]
[398375788,1765559392017,-500.0,0.00039452,30]
[398375790,1765559392081,-518.77,0.00039452,30]
[398375793,1765559392146,-1073.23,0.00039452,30]
[398375795,1765559392207,-500.0,0.00039452,30]
[398375797,1765559392268,-500.0,0.00039452,30]
[398375799,1765559392328,-500.0,0.00039452,30]
[398375801,1765559392395,-1014.08,0.00039452,30]
[398375804,1765559392461,-500.0,0.00039452,30]
[398375806,1765559392524,-500.0,0.00039452,30]
[398375808,1765559392587,-500.0,0.00039452,30]
[398375810,1765559392650,-500.0,0.00039452,30]
[398375813,1765559392711,-1249.97,0.00039452,30]
[398375815,1765559392772,-500.0,0.00039452,30]
[398375817,1765559392828,-500.0,0.00039452,30]
[398375819,1765559392886,-500.0,0.00039452,30]
[398375821,1765559392950,-500.0,0.00039452,30]
[398375824,1765559393018,-613.74,0.00039452,30]
[398375826,1765559393093,-952.07,0.00039452,30]
[398375828,1765559393162,-500.0,0.00039452,30]
[398375831,1765559393233,-612.16,0.00039452,30]
[398375833,1765559393300,-854.34,0.00039452,30]
[398375835,1765559393365,-363.54,0.00039452,30]
[398375837,1765559393431,-500.0,0.00039452,30]
[398375839,1765559393496,-627.56,0.00039452,30]
[398375841,1765559393566,-500.0,0.00039452,30]
[398375843,1765559393633,-500.0,0.00039452,30]
[398375846,1765559393699,-500.0,0.00039452,30]
[398375848,1765559393759,-895.82,0.00039452,30]
[398375850,1765559393823,-500.0,0.00039452,30]
[398375852,1765559393886,-500.0,0.00039452,30]
[398375855,1765559393953,-500.0,0.00039452,30]
[398375856,1765559394019,-970.02,0.00039452,30]
[398375857,1765559394089,-500.0,0.00039452,30]
[398375859,1765559394171,-531.18,0.00039452,30]
[398375862,1765559394252,-666.87,0.00039452,30]
[398375864,1765559394320,-579.42,0.00039452,30]
[398375866,1765559394385,-500.0,0.00039452,30]
[398375868,1765559394456,-500.0,0.00039452,30]
[398375870,1765559394522,-710.84,0.00039452,30]
[398375872,1765559394590,-825.13,0.00039452,30]
[398375875,1765559394657,-500.0,0.00039452,30]
[398375877,1765559394717,-500.0,0.00039452,30]
[398375879,1765559394776,-500.0,0.00039452,30]
[398375881,1765559394840,-500.0,0.00039452,30]
[398375884,1765559394903,-542.08,0.00039452,30]
[398375886,1765559394967,-500.0,0.00039452,30]
[398375888,1765559395034,-500.0,0.00039452,30]
[398375890,1765559395107,-713.89,0.00039452,30]
[398375893,1765559395178,-791.45,0.00039452,30]
[398375895,1765559395246,-500.0,0.00039452,30]
[398375897,1765559395311,-500.0,0.00039452,30]
[398375899,1765559395388,-1029.59,0.00039452,30]
[398375901,1765559395462,-809.28,0.00039452,30]
[398375904,1765559395532,-500.0,0.00039452,30]
[398375906,1765559395596,-500.0,0.00039452,30]
[398375908,1765559395666,-500.0,0.00039452,30]
[398375910,1765559395737,-500.0,0.00039452,30]
[398375913,1765559395798,-621.67,0.00039452,30]
[398375915,1765559395859,-642.87,0.00039452,30]
[398375917,1765559395927,-702.26,0.00039452,30]
[398375919,1765559395999,-500.0,0.00039452,30]
[398375922,1765559396067,-500.0,0.00039452,30]
[398375924,1765559396129,-844.79,0.00039452,30]
[398375926,1765559396191,-500.0,0.00039452,30]
[398375928,1765559396258,-1085.81,0.00039452,30]
[398375930,1765559396326,-500.0,0.00039452,30]
[398375933,1765559396395,-500.0,0.00039452,30]
[398375935,1765559396456,-500.0,0.00039452,30]
[398375937,1765559396517,-500.0,0.00039452,30]
[398375939,1765559396583,-500.0,0.00039452,30]
[398375942,1765559396648,-1828.22,0.00039452,30]
[398375944,1765559396703,-500.0,0.00039452,30]
[398375954,1765559397085,-500.0,0.00039452,30]
[398375956,1765559397143,-1274.19,0.00039452,30]
[398375958,1765559397213,-500.0,0.00039452,30]
[398375961,1765559397277,-2332.37,0.00039452,30]
[398375963,1765559397340,-555.65422319,0.00039452,30]
[398375965,1765559397408,-815.59,0.00039452,30]
[398375967,1765559397474,-644.63,0.00039452,30]
[398375970,1765559397537,-500.0,0.00039452,30]
[398375972,1765559397600,-770.84,0.00039452,30]
[398375974,1765559397661,-981.12,0.00039452,30]
[398375976,1765559397720,-570.19,0.00039452,30]
[398375979,1765559397774,-500.0,0.00039452,30]
[398375981,1765559397834,-500.0,0.00039452,30]
[398375983,1765559397889,-500.0,0.00039452,30]
[398375985,1765559397946,-3691.57,0.00039452,30]
[398375987,1765559398008,-1313.11,0.00039452,30]
[398375990,1765559398065,-500.0,0.00039452,30]
[398375992,1765559398121,-585.9,0.00039452,30]
[398375994,1765559398180,-589.02,0.00039452,30]
[398375996,1765559398235,-500.0,0.00039452,30]
[398375999,1765559398294,-500.0,0.00039452,30]
[398376001,1765559398354,-500.0,0.00039452,30]
[398376003,1765559398414,-500.0,0.00039452,30]
[398376005,1765559398469,-500.0,0.00039452,30]
[398376007,1765559398527,-500.0,0.00039452,30]
[398376010,1765559398585,-500.0,0.00039452,30]
[398376012,1765559398639,-500.0,0.00039452,30]
[398376014,1765559398693,-500.0,0.00039452,30]
[398376016,1765559398746,-500.0,0.00039452,30]
[398376019,1765559398804,-500.0,0.00039452,30]
[398376021,1765559398858,-500.0,0.00039452,30]
[398376023,1765559398914,-500.0,0.00039452,30]
[398376025,1765559398981,-500.0,0.00039452,30]
[398376026,1765559399062,-500.0,0.00039452,30]
[398376027,1765559399141,-500.0,0.00039452,30]
[398376030,1765559399205,-500.0,0.00039452,30]
[398376032,1765559399264,-500.0,0.00039452,30]
[398376034,1765559399321,-500.0,0.00039452,30]
[398376036,1765559399385,-3626.89,0.00039452,30]
[398376039,1765559399449,-784.06,0.00039452,30]
[398376041,1765559399507,-500.0,0.00039452,30]
[398376043,1765559399562,-500.0,0.00039452,30]
[398376045,1765559399616,-500.0,0.00039452,30]
[398376047,1765559399668,-500.0,0.00039452,30]
[398376050,1765559399719,-500.0,0.00039452,30]
[398376052,1765559399771,-500.0,0.00039452,30]
[398376054,1765559399819,-601.74,0.00039452,30]
[398376056,1765559399869,-500.0,0.00039452,30]
[398376059,1765559399931,-526.61,0.00039452,30]
[398376061,1765559399994,-189.1826912,0.00039452,30]
[398376063,1765559400071,-500.0,0.00039452,30]
[398376066,1765559400137,-500.0,0.00039452,30]
[398376068,1765559400199,-500.0,0.00039452,30]
[398376070,1765559400265,-778.17,0.00039452,30]
[398376072,1765559400326,-500.0,0.00039452,30]
[398376075,1765559400387,-566.11584642,0.00039452,30]
[398376077,1765559400447,-500.0,0.00039452,30]
[398376079,1765559400502,-500.0,0.00039452,30]
[398376081,1765559400555,-500.0,0.00039452,30]
[398376084,1765559400615,-500.0,0.00039452,30]
[398376086,1765559400672,-643.31,0.00039452,30]
[398376088,1765559400728,-500.0,0.00039452,30]
[398376090,1765559400799,-500.0,0.00039452,30]
[398376093,1765559400860,-1076.99,0.00039452,30]
[398376095,1765559400917,-500.0,0.00039452,30]
[398376097,1765559400976,-500.0,0.00039452,30]
[398376099,1765559401037,-500.0,0.00039452,30]
[398376102,1765559401097,-500.0,0.00039452,30]
[398376104,1765559401158,-553.84,0.00039452,30]
[398376106,1765559401219,-500.0,0.00039452,30]
[398376108,1765559401281,-500.0,0.00039452,30]
[398376110,1765559401350,-500.0,0.00039452,30]
[398376113,1765559401416,-500.0,0.00039452,30]
[398376115,1765559401477,-513.44,0.00039452,30]
[398376117,1765559401541,-500.0,0.00039452,30]
[398376119,1765559401606,-500.0,0.00039452,30]
[398376122,1765559401674,-835.61,0.00039452,30]
[398376124,1765559401737,-500.0,0.00039452,30]
[398376126,1765559401801,-500.0,0.00039452,30]
[398376129,1765559401862,-500.0,0.00039452,30]
[398376131,1765559401926,-3639.86,0.00039452,30]
[398376133,1765559401983,-511.8174255,0.00039452,30]
[398376135,1765559402043,-1233.43,0.00039452,30]
[398376137,1765559402104,-775.18,0.00039452,30]
[398376140,1765559402175,-500.0,0.00039452,30]
[398376142,1765559402234,-500.0,0.00039452,30]
[398376144,1765559402300,-1307.39,0.00039452,30]
[398376147,1765559402364,-1393.87,0.00039452,30]
[398376149,1765559402429,-737.19,0.00039452,30]
[398376151,1765559402512,-500.0,0.00039452,30]
[398376154,1765559402581,-500.0,0.00039452,30]
[398376156,1765559402643,-500.0,0.00039452,30]
[398376158,1765559402702,-500.0,0.00039452,30]
[398376160,1765559402764,-500.0,0.00039452,30]
[398376162,1765559402825,-1276.27,0.00039452,30]
[398376169,1765559403111,-500.0,0.00039452,30]
[398376171,1765559403186,-500.0,0.00039452,30]
[398376173,1765559403261,-536.91,0.00039452,30]
[398376176,1765559403336,-500.0,0.00039452,30]
[398376178,1765559403402,-1276.44,0.00039452,30]
[398376180,1765559403469,-500.0,0.00039452,30]
[398376182,1765559403540,-563.19,0.00039452,30]
[398376184,1765559403610,-500.0,0.00039452,30]
[398376187,1765559403681,-500.0,0.00039452,30]
[398376189,1765559403749,-691.33,0.00039452,30]
[398376191,1765559403816,-500.0,0.00039452,30]
[398376193,1765559403893,-500.0,0.00039452,30]
[398376194,1765559403967,-500.0,0.00039452,30]
[398376196,1765559404051,-500.0,0.00039452,30]
[398376198,1765559404141,-500.0,0.00039452,30]
[398376201,1765559404211,-500.0,0.00039452,30]
[398376203,1765559404277,-500.0,0.00039452,30]
[398376205,1765559404350,-500.0,0.00039452,30]
[398376207,1765559404421,-619.73,0.00039452,30]
[398376210,1765559404489,-500.0,0.00039452,30]
[398376212,1765559404554,-500.0,0.00039452,30]
[398376214,1765559404625,-500.0,0.00039452,30]
[398376216,1765559404698,-857.44,0.00039452,30]
[398376219,1765559404769,-573.64,0.00039452,30]
[398376221,1765559404832,-500.0,0.00039452,30]
[398376223,1765559404899,-572.6,0.00039452,30]
[398376225,1765559404972,-500.0,0.00039452,30]
[398376227,1765559405043,-561.54,0.00039452,30]
[398376230,1765559405117,-580.19,0.00039452,30]
[398376232,1765559405190,-1340.57,0.00039452,30]
[398376234,1765559405268,-500.0,0.00039452,30]
[398376237,1765559405338,-500.0,0.00039452,30]
[398376239,1765559405403,-500.0,0.00039452,30]
[398376241,1765559405477,-615.99,0.00039452,30]
[398376243,1765559405552,-500.0,0.00039452,30]
[398376246,1765559405621,-500.0,0.00039452,30]
[398376248,1765559405686,-500.0,0.00039452,30]
[398376250,1765559405758,-500.0,0.00039452,30]
[398376252,1765559405830,-1177.76,0.00039452,30]
[398376255,1765559405898,-500.0,0.00039452,30]
[398376257,1765559405964,-500.0,0.00039452,30]
[398376259,1765559406031,-1878.3,0.00039452,30]
[398376261,1765559406103,-1765.81,0.00039452,30]
[398376263,1765559406174,-1180.63,0.00039452,30]
[398376265,1765559406246,-850.22,0.00039452,30]
[398376268,1765559406315,-500.0,0.00039452,30]
[398376270,1765559406387,-500.0,0.00039452,30]
[398376272,1765559406457,-500.0,0.00039452,30]
[398376273,1765559406535,-500.0,0.00039452,30]
[398376274,1765559406606,-500.0,0.00039452,30]
[398376275,1765559406679,-500.0,0.00039452,30]
[398376276,1765559406757,-500.0,0.00039452,30]
[398376277,1765559406834,-500.0,0.00039452,30]
[398376278,1765559406903,-500.0,0.00039452,30]
[398376279,1765559406976,-934.3,0.00039452,30]
[398376280,1765559407047,-1531.1,0.00039452,30]
[398376281,1765559407118,-500.0,0.00039452,30]
[398376282,1765559407191,-500.0,0.00039452,30]
[398376283,1765559407273,-534.91,0.00039452,30]
[398376284,1765559407346,-500.0,0.00039452,30]
[398376285,1765559407416,-500.0,0.00039452,30]
[398376286,1765559407486,-629.98,0.00039452,30]
[398376287,1765559407557,-892.13,0.00039452,30]
[398376288,1765559407626,-500.0,0.00039452,30]
[398376290,1765559407695,-790.85,0.00039452,30]